bitfinex-derivatives/quotes_BTCF0:USTF0_20250127
["timestamp","ask_amount","ask_price","bid_price","bid_amount"]
[1737997182403,0.3608,99823.0,99813.0,0.18760798]
[1737997183400,0.3608,99824.0,99813.0,0.18760798]
[1737997183913,0.001,99823.0,99813.0,0.18760798]
[1737997184106,0.004,99823.0,99813.0,0.18760798]
[1737997184301,0.004,99823.0,99813.0,0.13749171]
[1737997184506,0.001,99823.0,99813.0,0.13749171]
[1737997184705,0.3658,99824.0,99813.0,0.13749171]
[1737997185104,0.561244,99814.0,99813.0,0.04269193]
[1737997185310,0.3608,99814.0,99810.0,0.00014999]
[1737997185605,0.200449,99812.0,99810.0,0.00014999]
[1737997185915,0.200449,99812.0,99810.0,0.04317315]
[1737997186219,0.3608,99814.0,99780.0,0.14491605]
[1737997186409,0.3608,99788.0,99780.0,0.14491605]
[1737997186612,0.3608,99788.0,99781.0,1.5]
[1737997187216,0.3608,99788.0,99781.0,1.44988373]
[1737997187716,0.3618,99788.0,99781.0,1.44988373]
[1737997187911,0.3608,99804.0,99784.0,0.3608]
[1737997188116,0.33711925,99804.0,99794.0,0.14491605]
[1737997188414,0.33711925,99804.0,99795.0,0.1483]
[1737997188621,0.3608,99813.0,99795.0,0.1483]
[1737997188822,0.3608,99813.0,99803.0,0.14491605]
[1737997189022,0.00014999,99810.0,99803.0,0.14491605]
[1737997189809,0.00014999,99810.0,99806.0,0.20046]
[1737997190016,0.3608,99823.0,99809.0,0.3608]
[1737997190315,0.3608,99823.0,99813.0,0.14491605]
[1737997190618,0.361608,99832.0,99813.0,0.14491605]
[1737997191024,0.1612,99832.0,99813.0,0.14491605]
[1737997191227,0.200415,99829.0,99813.0,0.14491605]
[1737997191810,0.15824999,99830.0,99813.0,0.14491605]
[1737997192221,0.15824999,99830.0,99813.0,0.34536005]
[1737997192423,0.15824999,99830.0,99814.0,0.200444]
[1737997192620,0.15824999,99830.0,99815.0,0.200442]
[1737997192825,0.200423,99825.0,99813.0,0.14491605]
[1737997193428,0.200423,99825.0,99813.0,0.001]
[1737997193730,0.200423,99825.0,99814.0,1.5]
[1737997193914,0.200423,99825.0,99815.0,0.001]
[1737997194419,0.200423,99825.0,99814.0,1.50052]
[1737997194420,0.006,99825.0,99817.0,0.3608]
[1737997194820,0.008,99825.0,99817.0,0.3608]
[1737997195020,0.009,99825.0,99817.0,0.3608]
[1737997195920,0.009,99825.0,99818.0,1.5]
[1737997196329,0.01,99825.0,99818.0,1.44988373]
[1737997196524,0.003,99825.0,99818.0,1.44988373]
[1737997196726,0.012,99825.0,99817.0,0.3618]
[1737997196930,0.212423,99825.0,99817.0,0.3618]
[1737997197126,0.006,99825.0,99818.0,0.001]
[1737997197316,0.015,99825.0,99818.0,0.002]
[1737997197923,0.015,99825.0,99818.0,0.001]
[1737997198323,0.3608,99819.0,99818.0,0.001]
[1737997198526,0.3608,99819.0,99813.0,0.00052]
[1737997198724,0.20045,99811.0,99810.0,0.00014999]
[1737997199037,0.56125,99811.0,99810.0,0.00014999]
[1737997199333,0.56125,99811.0,99810.0,0.05137212]
[1737997199529,0.20046,99806.0,99790.0,0.14491605]
[1737997200138,0.20046,99806.0,99790.0,0.34540805]
[1737997200336,0.3608,99811.0,99791.0,0.200489]
[1737997200533,0.56125,99811.0,99790.0,0.14506604]
[1737997200840,0.3608,99801.0,99790.0,0.00514999]
[1737997201036,0.20048,99797.0,99790.0,0.00514999]
[1737997201227,0.56129,99791.0,99790.0,0.01414999]
[1737997201532,0.56129,99791.0,99790.0,0.00914999]
[1737997201941,0.5115,99799.0,99790.0,0.00914999]
[1737997202135,0.1507,99799.0,99797.0,0.200478]
[1737997202338,0.1507,99799.0,99792.0,0.3608]
[1737997202339,0.3608,99831.0,99794.0,0.3608]
[1737997202529,0.3608,99844.0,99790.0,0.00914999]
[1737997202530,0.156,99839.0,99821.0,0.3608]
[1737997202935,0.1536,99847.0,99829.0,0.14491605]
[1737997203137,0.1536,99847.0,99837.0,0.14491605]
[1737997203330,0.1536,99847.0,99839.0,0.3608]
[1737997203539,0.1536,99847.0,99837.0,0.14491605]
[1737997203540,0.0789355,99842.0,99837.0,0.14491605]
[1737997203741,0.200394,99839.0,99838.0,1.5]
[1737997203931,0.007,99839.0,99830.0,0.00014999]
[1737997204135,0.3608,99831.0,99785.0,0.1502]
[1737997204449,0.307,99839.0,99774.0,1.5]
[1737997204450,0.3608,99787.0,99774.0,1.5]
[1737997204634,0.200552,99760.0,99750.0,0.14491605]
[1737997204946,0.6608,99760.0,99734.0,0.49412]
[1737997205138,0.3608,99768.0,99752.0,0.3608]
[1737997205335,0.3608,99768.0,99760.0,0.14491605]
[1737997205640,0.3608,99782.0,99758.0,0.14491605]
[1737997205830,0.3608,99782.0,99752.0,0.3608]
[1737997205831,0.3608,99773.0,99752.0,0.3608]
[1737997206030,0.200542,99766.0,99760.0,0.14491605]
[1737997206339,0.3608,99763.0,99760.0,0.14491605]
[1737997206544,0.3608,99763.0,99752.0,0.3608]
[1737997206932,0.00014999,99770.0,99752.0,0.3608]
[1737997207141,0.00014999,99770.0,99763.0,0.3608]
[1737997207339,0.3608,99784.0,99770.0,0.20053]
[1737997207539,0.1595,99786.0,99774.0,0.22328372]
[1737997207742,0.3608,99794.0,99784.0,0.200503]
[1737997208043,0.3608,99794.0,99781.0,0.3608]
[1737997208044,0.1595,99810.0,99781.0,0.3608]
[1737997208239,0.3096,99810.0,99804.0,0.3608]
[1737997208442,0.00014999,99810.0,99804.0,0.3608]
[1737997208643,0.00014999,99810.0,99804.0,0.31068373]
[1737997208864,0.00014999,99810.0,99801.0,0.3608]
[1737997210047,0.3608,99802.0,99791.0,0.3608]
[1737997210248,0.200468,99803.0,99790.0,0.22343371]
[1737997210431,0.200468,99803.0,99790.0,0.00014999]
[1737997210636,0.3608,99805.0,99790.0,0.00014999]
[1737997210836,0.353568,99802.0,99801.0,0.004]
[1737997211131,0.714368,99802.0,99801.0,0.005]
[1737997211340,0.5139,99802.0,99801.0,0.001]
[1737997211644,0.36094999,99810.0,99799.0,0.200473]
[1737997211948,0.36094999,99810.0,99794.0,0.200483]
[1737997212138,0.006,99802.0,99793.0,0.31168373]
[1737997212341,0.006,99802.0,99798.0,0.200476]
[1737997212544,0.006,99802.0,99799.0,0.200474]
[1737997212740,0.006,99802.0,99793.0,0.31168373]
[1737997212941,0.006,99802.0,99799.0,0.200473]
[1737997213544,0.00014999,99810.0,99801.0,0.3608]
[1737997213747,0.003,99802.0,99801.0,0.3608]
[1737997214442,0.00014999,99810.0,99809.0,0.200454]
[1737997214648,1e-08,99810.0,99809.0,0.51113773]
[1737997214833,1e-08,99810.0,99799.0,0.001]
[1737997215041,0.001,99802.0,99799.0,0.001]
[1737997215236,1e-08,99810.0,99799.0,0.001]
[1737997215437,1e-08,99810.0,99809.0,0.3608]
[1737997215745,0.3608,99818.0,99809.0,1.5]
[1737997216150,0.200467,99803.0,99801.0,0.004]
[1737997216359,0.3608,99802.0,99801.0,0.004]
[1737997216739,0.001,99810.0,99809.0,0.003]
[1737997216943,0.00109995,99810.0,99809.0,0.003]
[1737997217650,0.00109995,99810.0,99800.0,0.05109059]
[1737997217651,0.001,99802.0,99800.0,0.00097432]
[1737997217849,0.001,99802.0,99795.0,0.200482]
[1737997218057,0.001,99802.0,99790.0,0.272889]
[1737997218752,0.001,99802.0,99801.0,0.3608]
[1737997219253,0.00109995,99810.0,99809.0,0.003]
[1737997219643,1e-08,99810.0,99809.0,0.003]
[1737997219844,0.3608,99812.0,99796.0,0.3608]
[1737997220053,0.3608,99812.0,99801.0,0.001]
[1737997220356,0.3608,99812.0,99804.0,0.200464]
[1737997220557,0.30874758,99812.0,99805.0,0.200462]
[1737997220758,0.001,99810.0,99809.0,0.009]
[1737997220957,0.1579,99828.0,99809.0,0.009]
[1737997220958,0.3608,99849.0,99809.0,0.009]
[1737997221250,0.51169,99848.0,99832.0,0.3608]
[1737997221453,0.29145124,99852.0,99843.0,0.3608]
[1737997221753,0.3608,99877.0,99859.0,0.200353]
[1737997221952,0.3067,99878.0,99862.0,0.3608]
[1737997222148,0.200321,99876.0,99862.0,0.3608]
[1737997222655,0.3067,99878.0,99862.0,0.3608]
[1737997223153,0.1588,99878.0,99866.0,0.20034]
[1737997223352,0.1588,99878.0,99862.0,0.3608]
[1737997223353,0.00299,99879.0,99871.0,0.3608]
[1737997223555,0.006,99876.0,99871.0,0.3608]
[1737997223766,0.015,99876.0,99871.0,0.31068373]
[1737997223941,0.015,99876.0,99872.0,1.5]
[1737997224252,0.006,99876.0,99872.0,1.5]
[1737997224857,0.015,99876.0,99874.0,0.200323]
[1737997225153,0.20783023,99900.0,99881.0,0.200309]
[1737997225359,0.20783023,99900.0,99883.0,0.3608]
[1737997225854,0.20783023,99900.0,99892.0,0.3608]
[1737997226049,0.20783023,99900.0,99875.0,1.5]
[1737997226050,0.3608,99895.0,99875.0,1.5]
[1737997226252,0.3608,99895.0,99875.0,1.55065965]
[1737997226450,0.1,99900.0,99883.0,0.3608]
[1737997226656,0.1,99900.0,99893.0,0.31068373]
[1737997226849,0.04491706,99900.0,99896.0,0.200279]
[1737997227045,0.04491706,99900.0,99893.0,0.31068373]
[1737997227245,0.04491706,99900.0,99897.0,1.5]
[1737997227442,0.04491706,99900.0,99893.0,0.31068373]
[1737997227652,0.002,99894.0,99893.0,0.31068373]
[1737997227850,0.002,99894.0,99893.0,0.36038702]
[1737997229154,0.002,99894.0,99893.0,0.04970329]
[1737997229360,0.04491706,99900.0,99893.0,0.04970329]
[1737997229361,0.04691706,99900.0,99893.0,0.001]
[1737997229864,0.04491706,99900.0,99891.0,0.51197373]
[1737997230043,0.002,99894.0,99893.0,0.001]
[1737997230444,0.04491706,99900.0,99891.0,0.31168373]
[1737997230647,0.04691706,99900.0,99893.0,0.001]
[1737997231058,0.3608,99895.0,99884.0,0.05033961]
[1737997231253,0.3608,99895.0,99883.0,0.3608]
[1737997231254,0.002,99894.0,99893.0,0.001]
[1737997231957,0.563085,99894.0,99893.0,0.001]
[1737997232259,0.6628,99894.0,99870.0,0.00014999]
[1737997232451,0.3608,99882.0,99870.0,0.00014999]
[1737997232653,0.3608,99882.0,99872.0,0.05209208]
[1737997232849,0.3608,99882.0,99870.0,0.00014999]
[1737997233449,0.20033,99872.0,99870.0,0.00014999]
[1737997234051,0.3608,99882.0,99870.0,0.00914999]
[1737997234261,0.3608,99882.0,99870.0,0.20339276]
[1737997234561,0.3608,99882.0,99870.0,0.00914999]
[1737997234949,0.3608,99882.0,99870.0,0.43226541]
[1737997235149,0.3608,99882.0,99870.0,0.20948299]
[1737997235349,0.3608,99882.0,99871.0,0.200331]
[1737997235559,0.3608,99882.0,99870.0,0.01414999]
[1737997235764,0.3608,99882.0,99874.0,0.15020873]
[1737997235960,0.3608,99882.0,99870.0,0.23693241]
[1737997236146,0.3608,99873.0,99870.0,0.01314999]
[1737997236347,0.20033,99872.0,99870.0,0.01314999]
[1737997236860,0.20033,99872.0,99858.0,0.05069719]
[1737997236861,0.200356,99859.0,99858.0,0.05069719]
[1737997237067,0.3608,99859.0,99855.0,1.50052]
[1737997237262,0.1494,99858.0,99836.0,0.561202]
[1737997237666,0.1494,99858.0,99844.0,1.5]
[1737997237857,0.200365,99855.0,99844.0,1.5]
[1737997238162,0.1494,99858.0,99844.0,1.5]
[1737997238466,0.200367,99854.0,99844.0,1.5]
[1737997238668,0.20037,99852.0,99844.0,1.5]
[1737997238865,0.1494,99858.0,99844.0,1.44988373]
[1737997239362,0.1494,99858.0,99855.0,0.009]
[1737997239565,0.561162,99856.0,99855.0,0.009]
[1737997239867,0.561162,99856.0,99844.0,0.009]
[1737997239868,0.200374,99850.0,99844.0,0.009]
[1737997240062,0.1626,99855.0,99844.0,0.018]
[1737997240262,0.001,99858.0,99854.0,0.3608]
[1737997240451,0.4757,99880.0,99872.0,0.200329]
[1737997240651,0.3608,99881.0,99870.0,0.22278242]
[1737997240956,0.31979493,99881.0,99876.0,0.200321]
[1737997241153,0.3608,99887.0,99870.0,0.22278242]
[1737997241154,0.3608,99898.0,99880.0,1.5]
[1737997241667,0.3608,99888.0,99878.0,0.3608]
[1737997241858,0.3608,99888.0,99878.0,0.31083372]
[1737997242254,0.3608,99888.0,99879.0,1.5]
[1737997242961,0.04491706,99900.0,99879.0,1.700315]
[1737997242962,0.001,99881.0,99879.0,1.700315]
[1737997243155,0.04491706,99900.0,99887.0,0.3608]
[1737997243357,0.3608,99908.0,99899.0,0.200274]
[1737997243658,0.3608,99908.0,99905.0,0.200261]
[1737997243861,0.317,99919.0,99906.0,0.20026]
[1737997244368,0.317,99919.0,99908.0,0.3608]
[1737997245157,0.3608,99915.0,99900.0,1.50066999]
[1737997245359,0.3608,99907.0,99900.0,1.50014999]
[1737997245559,0.317,99919.0,99900.0,1.50014999]
[1737997246058,0.00799,99909.0,99908.0,0.200257]
[1737997246258,0.00299,99924.0,99908.0,0.561057]
[1737997246458,0.00299,99924.0,99910.0,0.22278242]
[1737997246664,0.00299,99924.0,99911.0,1.5]
[1737997247057,0.3608,99914.0,99911.0,1.5]
[1737997247258,0.3608,99918.0,99911.0,1.5]
[1737997247465,0.3608,99918.0,99908.0,0.001]
[1737997247668,0.3608,99910.0,99908.0,0.001]
[1737997247962,0.3608,99918.0,99896.0,0.31183372]
[1737997248177,0.3608,99918.0,99911.0,0.001]
[1737997249270,0.3608,99912.0,99911.0,0.001]
[1737997249461,0.3608,99912.0,99911.0,0.05079164]
[1737997249965,0.3608,99912.0,99911.0,0.04979164]
[1737997250162,0.3608,99912.0,99908.0,0.001]
[1737997250362,0.00014999,99920.0,99908.0,0.001]
[1737997250567,0.00014999,99920.0,99910.0,0.22278242]
[1737997250877,0.009,99912.0,99911.0,0.001]
[1737997251062,0.009,99912.0,99910.0,0.17366615]
[1737997251560,0.011,99912.0,99910.0,0.17366615]
[1737997252270,0.00014999,99920.0,99910.0,0.17366615]
[1737997252470,0.002,99912.0,99911.0,0.200251]
[1737997253267,0.00900001,99920.0,99915.0,0.200241]
[1737997253470,0.009,99920.0,99915.0,0.200241]
[1737997253763,0.009,99920.0,99911.0,1.54979063]
[1737997253764,0.32955806,99933.0,99913.0,0.3608]
[1737997253967,0.3608,99952.0,99925.0,0.3608]
[1737997254276,0.3608,99952.0,99942.0,0.58358242]
[1737997254573,0.200146,99964.0,99942.0,0.58358242]
[1737997254776,0.3608,99967.0,99950.0,0.3608]
[1737997255275,0.36196,99980.0,99963.0,0.3608]
[1737997255565,0.3079,99991.0,99968.0,0.560937]
[1737997255764,0.3079,99991.0,99980.0,0.3608]
[1737997256168,0.200108,99983.0,99968.0,0.3608]
[1737997256373,0.200128,99973.0,99971.0,1.5]
[1737997256671,0.200145,99964.0,99963.0,0.001]
[1737997257078,0.200145,99964.0,99961.0,0.00193171]
[1737997257370,0.20013,99972.0,99960.0,0.00165069]
[1737997257559,0.3608,99976.0,99968.0,0.3608]
[1737997257763,0.3608,99975.0,99962.0,0.22278242]
[1737997257969,0.3608,99967.0,99960.0,0.05237307]
[1737997258275,0.20015,99962.0,99960.0,0.05237307]
[1737997258671,0.3608,99967.0,99960.0,0.05237307]
[1737997258877,0.200142,99966.0,99960.0,0.05237307]
[1737997259462,0.200142,99966.0,99963.0,0.001]
[1737997259670,0.200143,99965.0,99963.0,0.001]
[1737997260170,0.200149,99961.0,99960.0,0.001]
[1737997260372,0.200206,99933.0,99926.0,0.59892465]
[1737997260573,0.200206,99933.0,99926.0,0.23812465]
[1737997260964,0.561006,99933.0,99926.0,0.23812465]
[1737997261165,0.3608,99933.0,99926.0,0.23812465]
[1737997261476,0.561006,99933.0,99926.0,0.23812465]
[1737997261671,0.561006,99933.0,99920.0,0.00014999]
[1737997261672,0.200212,99930.0,99920.0,0.00014999]
[1737997261972,0.00014999,99940.0,99930.0,0.20021]
[1737997262176,0.200199,99937.0,99922.0,1.50202116]
[1737997262374,0.200226,99923.0,99922.0,0.00150116]
[1737997263278,0.200244,99914.0,99913.0,0.44509488]
[1737997263473,0.3608,99914.0,99906.0,0.17859349]
[1737997263667,0.200256,99908.0,99906.0,0.17859349]
[1737997264072,0.3,99908.0,99895.0,0.003]
[1737997264274,0.561068,99902.0,99895.0,0.003]
[1737997264979,0.20028,99896.0,99895.0,0.003]
[1737997265176,0.3608,99896.0,99880.0,0.003]
[1737997265376,0.56111,99881.0,99880.0,0.003]
[1737997266175,0.200338,99867.0,99858.0,0.19231276]
[1737997266374,0.200354,99859.0,99858.0,0.19231276]
[1737997267571,0.200366,99853.0,99850.0,0.00314999]
[1737997267769,0.561166,99853.0,99850.0,0.00314999]
[1737997268171,0.6608,99853.0,99850.0,0.00314999]
[1737997268473,0.6608,99853.0,99835.0,0.003]
[1737997268474,0.2004,99836.0,99835.0,0.003]
[1737997268673,0.2004,99836.0,99826.0,0.00150233]
[1737997268674,0.200419,99827.0,99826.0,0.00150233]
[1737997268888,0.561219,99827.0,99826.0,0.00150233]
[1737997269272,0.200468,99803.0,99801.0,0.1509]
[1737997269466,0.3608,99807.0,99801.0,0.1509]
[1737997269879,0.3608,99827.0,99801.0,0.1509]
[1737997270082,0.00014999,99810.0,99802.0,0.3608]
[1737997270385,0.00014999,99810.0,99804.0,0.200464]
[1737997271183,0.00014999,99810.0,99802.0,1.86132]
[1737997271392,0.00014999,99810.0,99802.0,1.8608]
[1737997271681,0.00014999,99810.0,99803.0,0.3608]
[1737997271883,0.3608,99842.0,99806.0,0.200459]
[1737997272178,0.3608,99842.0,99803.0,0.6608]
[1737997272179,0.200391,99841.0,99830.0,0.22278242]
[1737997272373,0.200375,99849.0,99836.0,0.3608]
[1737997272575,0.3608,99852.0,99836.0,0.3608]
[1737997272774,0.3608,99852.0,99840.0,0.22278242]
[1737997272970,0.00014999,99850.0,99844.0,0.3608]
[1737997273477,0.3608,99866.0,99847.0,0.3608]
[1737997273685,0.3608,99866.0,99850.0,0.22278242]
[1737997273686,0.200346,99864.0,99850.0,0.22278242]
[1737997273868,0.200346,99864.0,99847.0,0.3608]
[1737997274067,0.200346,99864.0,99837.0,0.1614]
[1737997274068,0.3608,99848.0,99837.0,0.1614]
[1737997274468,0.561177,99848.0,99837.0,0.1614]
[1737997274969,0.20038,99846.0,99837.0,0.1614]
[1737997275186,0.20038,99846.0,99844.0,0.001]
[1737997275381,0.20038,99846.0,99837.0,0.11228373]
[1737997275587,0.200392,99841.0,99837.0,0.11228373]
[1737997275890,0.00014999,99850.0,99838.0,1.5]
[1737997276075,0.00014999,99850.0,99837.0,0.12328373]
[1737997276382,0.200382,99845.0,99844.0,0.007]
[1737997276681,0.200374,99849.0,99844.0,0.007]
[1737997277082,0.3608,99845.0,99844.0,0.007]
[1737997277492,0.200389,99842.0,99838.0,0.001]
[1737997277783,0.3608,99845.0,99838.0,0.001]
[1737997277784,0.200393,99840.0,99838.0,0.001]
[1737997277987,0.200393,99840.0,99831.0,1.5]
[1737997277988,0.200408,99832.0,99831.0,0.00052]
[1737997278282,0.3608,99843.0,99830.0,0.00014999]
[1737997278485,0.3608,99834.0,99817.0,0.1612]
[1737997278675,0.200435,99819.0,99817.0,0.21032911]
[1737997278883,0.200435,99819.0,99817.0,0.04912911]
[1737997279077,0.3608,99823.0,99800.0,0.1]
[1737997279078,0.200438,99817.0,99800.0,0.1]
[1737997279293,0.200471,99801.0,99800.0,0.1]
[1737997279783,0.561271,99801.0,99800.0,0.15080311]
[1737997279973,0.561271,99801.0,99800.0,0.10014999]
[1737997280570,0.562271,99801.0,99800.0,0.10914999]
[1737997281381,0.201471,99801.0,99800.0,0.05903372]
[1737997281584,0.001,99801.0,99800.0,0.06203372]
[1737997281885,0.200452,99811.0,99800.0,0.06203372]
[1737997282076,0.200452,99811.0,99800.0,0.42283372]
[1737997282272,0.200452,99811.0,99810.0,1.5]
[1737997282479,0.200444,99815.0,99810.0,1.5]
[1737997282685,0.3608,99818.0,99810.0,1.5]
[1737997282870,0.200449,99812.0,99810.0,1.5]
[1737997283075,0.3608,99818.0,99800.0,0.05403372]
[1737997283076,0.200471,99801.0,99800.0,0.05403372]
[1737997283484,0.200471,99801.0,99800.0,0.10400504]
[1737997284181,0.200471,99801.0,99800.0,0.10000504]
[1737997284377,0.200471,99801.0,99800.0,0.05012131]
[1737997284582,0.200493,99790.0,99780.0,0.1584]
[1737997284884,0.561293,99790.0,99783.0,1.5]
[1737997285085,0.561293,99790.0,99783.0,1.50052]
[1737997285483,0.561293,99790.0,99789.0,0.0544131]
[1737997286077,0.561293,99790.0,99789.0,0.0624131]
[1737997286786,0.922093,99790.0,99783.0,0.00052]
[1737997286972,0.200505,99784.0,99782.0,0.00150306]
[1737997287172,0.200505,99784.0,99780.0,0.00014999]
[1737997287173,0.72280001,99790.0,99780.0,0.00014999]
[1737997287377,0.561311,99781.0,99780.0,0.00014999]
[1737997287588,0.20054,99767.0,99761.0,0.10903372]
[1737997287784,0.3608,99767.0,99761.0,0.15929818]
[1737997287997,0.200536,99769.0,99761.0,0.15929818]
[1737997288689,0.36094999,99770.0,99761.0,0.15929818]
[1737997288885,0.200549,99762.0,99761.0,0.10903372]
[1737997289590,0.200549,99762.0,99761.0,0.12703372]
[1737997290290,0.001,99762.0,99761.0,0.12703372]
[1737997290490,0.001,99762.0,99761.0,0.07691745]
[1737997290888,0.00014999,99770.0,99761.0,0.43771745]
[1737997291096,0.3608,99791.0,99761.0,0.43771745]
[1737997291097,0.200496,99789.0,99769.0,0.3608]
[1737997291298,0.200496,99789.0,99784.0,1.5]
[1737997291487,0.3608,99791.0,99784.0,1.5]
[1737997291993,0.200503,99785.0,99784.0,1.5]
[1737997292496,0.200503,99785.0,99784.0,1.508]
[1737997292890,0.001,99789.0,99784.0,0.008]
[1737997293092,0.001,99785.0,99784.0,0.014]
[1737997293498,0.001,99785.0,99784.0,1.514]
[1737997293693,0.001,99785.0,99770.0,0.58358242]
[1737997293886,0.001,99785.0,99771.0,0.20053]
[1737997294297,0.001,99785.0,99780.0,0.3608]
[1737997294496,0.34240043,99807.0,99782.0,0.3608]
[1737997294698,0.3608,99818.0,99798.0,0.3608]
[1737997294886,0.20044,99816.0,99797.0,0.22278242]
[1737997295089,0.3608,99818.0,99797.0,0.22278242]
[1737997295289,0.001,99785.0,99784.0,1.50552]
[1737997295598,0.3608,99809.0,99784.0,1.505]
[1737997295796,0.3608,99809.0,99798.0,0.001]
[1737997295988,0.20046,99807.0,99798.0,0.001]
[1737997296489,0.3608,99809.0,99793.0,0.3608]
[1737997296691,0.00014999,99810.0,99793.0,0.3608]
[1737997296692,0.00014999,99810.0,99793.0,0.31068373]
[1737997297093,0.00014999,99810.0,99791.0,0.1538]
[1737997297094,0.200472,99801.0,99791.0,0.1538]
[1737997297294,0.20048,99797.0,99791.0,0.20391551]
[1737997297891,0.200465,99804.0,99791.0,0.20391551]
[1737997298195,0.3608,99804.0,99791.0,0.20391551]
[1737997298400,0.200475,99799.0,99791.0,0.20391551]
[1737997298595,0.200475,99799.0,99791.0,0.20791551]
[1737997298785,0.001,99797.0,99791.0,0.21391551]
[1737997299297,0.200478,99798.0,99791.0,0.20391551]
[1737997299495,0.200478,99798.0,99791.0,0.20491551]
[1737997299686,0.200478,99798.0,99791.0,0.15479924]
[1737997299885,0.001,99797.0,99791.0,0.16079924]
[1737997300401,0.00014999,99810.0,99792.0,0.200489]
[1737997300798,0.00014999,99810.0,99793.0,1.5]
[1737997301300,0.00014999,99810.0,99808.0,0.3608]
[1737997301505,0.00014999,99810.0,99809.0,0.1586]
[1737997302196,0.00514999,99810.0,99809.0,0.1586]
[1737997302699,0.00414999,99810.0,99809.0,0.10848373]
[1737997302898,0.21360299,99810.0,99809.0,0.001]
[1737997303093,0.01314999,99810.0,99809.0,0.001]
[1737997304094,0.01314999,99810.0,99809.0,0.05214198]
[1737997304303,0.00414999,99810.0,99809.0,0.05114198]
[1737997304504,0.00114999,99810.0,99809.0,0.007]
[1737997304699,0.00114999,99810.0,99809.0,0.012]
[1737997304898,0.00114999,99810.0,99809.0,0.005]
[1737997305105,0.00214999,99810.0,99809.0,0.005]
[1737997305800,0.00614999,99810.0,99809.0,0.001]
[1737997306100,0.00614999,99810.0,99809.0,0.002]
[1737997306306,0.00014999,99810.0,99809.0,0.001]
[1737997306505,0.00414999,99810.0,99809.0,0.001]
[1737997306911,0.00414999,99810.0,99809.0,0.05047587]
[1737997307101,0.00414999,99810.0,99809.0,0.001]
[1737997307404,0.00414999,99810.0,99800.0,0.04891422]
[1737997307600,0.3608,99801.0,99790.0,0.00014999]
[1737997307799,0.3608,99801.0,99790.0,0.04907424]
[1737997307800,0.200491,99791.0,99790.0,0.04907424]
[1737997308189,0.3608,99793.0,99754.0,0.36230375]
[1737997308413,0.3608,99775.0,99755.0,0.1561]
[1737997308595,0.200541,99766.0,99755.0,0.1561]
[1737997308800,0.200541,99766.0,99755.0,0.10898373]
[1737997309094,0.200541,99766.0,99755.0,0.15844957]
[1737997309303,0.200561,99757.0,99755.0,0.15844957]
[1737997309497,0.3608,99764.0,99755.0,0.15844957]
[1737997309898,0.200553,99761.0,99755.0,0.15844957]
[1737997310812,0.00014999,99770.0,99759.0,0.008]
[1737997311415,0.200545,99764.0,99759.0,0.008]
[1737997311601,0.001,99761.0,99755.0,0.16644957]
[1737997311803,0.001,99761.0,99755.0,0.1163333]
[1737997312402,0.200545,99764.0,99759.0,0.014]
[1737997312605,0.001,99766.0,99759.0,0.014]
[1737997312804,0.200535,99769.0,99759.0,0.008]
[1737997313002,0.001,99761.0,99759.0,0.008]
[1737997313201,0.3608,99795.0,99759.0,0.008]
[1737997313394,0.3608,99795.0,99780.0,0.3608]
[1737997313600,0.200472,99801.0,99785.0,0.22330976]
[1737997313803,0.3608,99805.0,99785.0,0.22330976]
[1737997313804,0.200473,99800.0,99785.0,0.22330976]
[1737997314410,0.00014999,99800.0,99781.0,0.3177]
[1737997314800,0.200476,99799.0,99781.0,0.26758373]
[1737997314994,0.00014999,99800.0,99785.0,0.002]
[1737997315212,0.200493,99790.0,99785.0,0.002]
[1737997315410,0.00014999,99800.0,99785.0,0.002]
[1737997315705,0.00014999,99800.0,99781.0,0.26758373]
[1737997315706,0.200508,99783.0,99781.0,0.05449988]
[1737997315906,0.3608,99782.0,99760.0,0.157]
[1737997316107,0.200551,99762.0,99760.0,0.157]
[1737997316405,0.20055,99762.0,99755.0,0.1621]
[1737997316712,0.200548,99763.0,99755.0,0.1621]
[1737997316903,0.200542,99766.0,99755.0,0.1621]
[1737997317103,0.00014999,99770.0,99755.0,0.1621]
[1737997317411,0.200563,99756.0,99755.0,0.04925403]
[1737997317604,0.200563,99756.0,99751.0,0.157]
[1737997317808,0.3608,99766.0,99751.0,0.10838748]
[1737997317999,0.3608,99756.0,99751.0,0.10838748]
[1737997318201,0.200571,99751.0,99750.0,0.29867797]
[1737997319415,0.201571,99751.0,99750.0,0.30767797]
[1737997320608,0.202571,99751.0,99750.0,0.31067797]
[1737997321012,0.202571,99751.0,99750.0,0.2605617]
[1737997321207,0.202571,99751.0,99750.0,0.01214999]
[1737997321514,0.201571,99751.0,99750.0,0.00914999]
[1737997321715,0.202571,99751.0,99750.0,0.01214999]
[1737997322015,0.201571,99751.0,99750.0,0.01214999]
[1737997322200,0.202571,99751.0,99750.0,0.01214999]
[1737997322401,0.200583,99745.0,99731.0,0.00150372]
[1737997322602,0.561383,99745.0,99731.0,0.00150372]
[1737997322803,0.200578,99748.0,99739.0,0.05026005]
[1737997323101,0.002,99751.0,99744.0,0.3638]
[1737997323304,0.200583,99745.0,99744.0,0.3638]
[1737997323599,0.200576,99749.0,99744.0,0.3638]
[1737997323807,0.200553,99761.0,99744.0,0.3788]
[1737997324110,0.200553,99760.0,99756.0,0.31068373]
[1737997324304,0.200557,99758.0,99756.0,0.31068373]
[1737997324816,0.200557,99758.0,99754.0,0.3608]
[1737997325005,0.00014999,99770.0,99754.0,0.3608]
[1737997325211,0.00014999,99770.0,99769.0,0.3608]
[1737997325412,0.00014999,99770.0,99754.0,0.3608]
[1737997325708,0.00014999,99770.0,99745.0,0.4633]